bitfinex-derivatives/quotes_SOLF0:USTF0_20250415
["timestamp","ask_amount","ask_price","bid_price","bid_amount"]
[1744688305131,7.7099686,130.61,130.59,0.05083554]
[1744688307131,7.6583,130.6,130.59,0.05083554]
[1744688332171,43.01135168,130.61,130.59,0.05083554]
[1744688332772,7.6583,130.6,130.59,0.05083554]
[1744688334071,12.49105168,130.61,130.59,0.05083554]
[1744688334276,0.0520686,130.61,130.59,0.05083554]
[1744688334777,7.7099686,130.61,130.59,0.05083554]
[1744688334973,0.0520686,130.61,130.59,0.05083554]
[1744688335880,7.6583,130.6,130.59,0.05083554]
[1744688338280,12.43958308,130.6,130.59,0.05083554]
[1744688340477,4.78128308,130.6,130.56,29.84]
[1744688340778,4.78128308,130.59,130.55,4.78128308]
[1744688341079,7.66,130.58,130.55,4.78128308]
[1744688341482,7.70940701,130.58,130.55,12.49502683]
[1744688342078,0.04940701,130.58,130.55,0.05284375]
[1744688342281,4.83069009,130.58,130.55,0.05284375]
[1744688342780,7.6601,130.57,130.55,0.05284375]
[1744688343282,4.83069009,130.58,130.55,0.05284375]
[1744688343481,7.6601,130.57,130.55,0.05284375]
[1744688343982,4.83069009,130.58,130.55,0.05284375]
[1744688344981,7.6601,130.57,130.55,0.05284375]
[1744688345785,0.04940701,130.58,130.56,4.78128308]
[1744688346283,7.70890701,130.58,130.56,4.78128308]
[1744688346885,0.04940701,130.58,130.56,12.44188308]
[1744688348284,0.04940701,130.58,130.57,3.13762722]
[1744688349279,7.70890701,130.58,130.56,4.78128308]
[1744688349485,4.83069009,130.58,130.55,0.05284375]
[1744688349985,12.44188308,130.56,130.55,0.05284375]
[1744688350380,7.6606,130.56,130.55,0.05284375]
[1744688353087,12.44188308,130.56,130.55,0.05284375]
[1744688353289,7.6638,130.51,130.47,29.58]
[1744688353587,4.78128308,130.53,130.48,7.9241891]
[1744688353787,7.6633,130.52,130.49,3.14290602]
[1744688353980,7.6633,130.52,130.48,12.44658308]
[1744688354178,4.78128308,130.53,130.49,3.14208258]
[1744688354382,7.664,130.51,130.5,0.05832256]
[1744688356791,12.44528308,130.51,130.5,0.05832256]
[1744688358791,7.6654,130.48,130.45,10.89888308]
[1744688358991,4.78128308,130.49,130.44,29.58]
[1744688359190,4.78128308,130.49,130.44,34.36128308]
[1744688359390,7.6664,130.47,130.44,34.36128308]
[1744688359587,4.78128308,130.5,130.45,4.78128308]
[1744688359787,7.6657,130.48,130.46,0.0492679]
[1744688360191,0.05187285,130.49,130.46,0.0492679]
[1744688361090,0.05187285,130.49,130.46,4.83055098]
[1744688362192,7.71687285,130.49,130.46,4.83055098]
[1744688362394,0.05187285,130.49,130.47,12.44708308]
[1744688362595,0.05187285,130.49,130.48,4.78128308]
[1744688363989,4.78128308,130.53,130.48,4.78128308]
[1744688364193,29.6,130.55,130.51,4.78128308]
[1744688364393,4.78128308,130.56,130.51,4.78128308]
[1744688364596,7.6623,130.54,130.51,4.78128308]
[1744688364892,4.78128308,130.56,130.51,4.78128308]
[1744688365098,7.6623,130.54,130.51,4.78128308]
[1744688365394,7.6623,130.54,130.52,0.05071288]
[1744688368998,7.6624,130.53,130.52,0.05071288]
[1744688369394,7.6624,130.53,130.47,29.6]
[1744688369395,4.78128308,130.53,130.47,29.6]
[1744688369595,7.6639,130.51,130.48,4.78128308]
[1744688370300,7.6639,130.51,130.49,4.78128308]
[1744688370500,0.05805777,130.51,130.49,4.78128308]
[1744688370904,0.05805777,130.51,130.49,12.44598308]
[1744688372103,7.72175777,130.51,130.49,4.78128308]
[1744688375308,0.05805777,130.51,130.49,12.44568308]
[1744688375510,0.05805777,130.51,130.5,4.78128308]
[1744688376205,0.05805777,130.51,130.5,12.44548308]
[1744688376504,0.05805777,130.51,130.5,4.78128308]
[1744688376905,0.05805777,130.51,130.48,4.83878187]
[1744688377104,0.05805777,130.51,130.48,0.05749879]
[1744688378202,7.6648,130.49,130.48,0.05749879]
[1744688380305,0.05805777,130.51,130.48,0.05749879]
[1744688381915,7.6642,130.5,130.48,0.05749879]
[1744688383011,7.6648,130.49,130.48,0.05749879]
[1744688386709,7.6671,130.45,130.44,29.58]
[1744688386917,4.78128308,130.47,130.42,4.78128308]
[1744688387813,7.668,130.44,130.43,0.05114126]
[1744688388820,7.6674,130.45,130.43,4.83242434]
[1744688391719,7.6677,130.44,130.43,4.83242434]
[1744688391923,0.05129823,130.46,130.43,0.05114126]
[1744688392321,7.71789823,130.46,130.43,12.50052434]
[1744688392523,0.05129823,130.46,130.43,4.83242434]
[1744688392823,0.05129823,130.46,130.43,0.05114126]
[1744688393327,7.6671,130.45,130.43,0.05114126]
[1744688393925,7.6677,130.44,130.43,0.05114126]
[1744688394420,7.6674,130.45,130.43,0.05114126]
[1744688397029,7.6674,130.45,130.43,4.83242434]
[1744688400831,7.6677,130.44,130.43,0.05114126]
[1744688402129,0.05129823,130.46,130.43,4.83242434]
[1744688403232,7.71809823,130.46,130.43,12.50042434]
[1744688403832,29.6,130.51,130.45,4.78128308]
[1744688404023,4.78128308,130.52,130.47,4.78128308]
[1744688404223,4.78128308,130.51,130.46,4.78128308]
[1744688404633,29.6,130.53,130.45,7.6668]
[1744688404634,4.78128308,130.5,130.45,12.44808308]
[1744688405026,7.72279325,130.49,130.46,0.05815927]
[1744688405226,0.05789325,130.49,130.46,0.05815927]
[1744688406531,0.05789325,130.49,130.46,12.50564235]
[1744688407535,0.05789325,130.49,130.47,4.78128308]
[1744688407836,0.05789325,130.49,130.48,4.78128308]
[1744688408739,1.9978,130.54,130.48,4.78128308]
[1744688408941,4.78128308,130.55,130.5,4.78128308]
[1744688409137,4.78128308,130.55,130.47,33.766]
[1744688409335,7.6628,130.53,130.5,4.78128308]
[1744688409941,7.71982002,130.53,130.5,4.83185419]
[1744688410144,0.05702002,130.53,130.5,4.83185419]
[1744688410340,0.05702002,130.53,130.52,4.78128308]
[1744688412446,0.05702002,130.53,130.52,12.44428308]
[1744688413446,29.58,130.61,130.52,12.44128308]
[1744688413657,6.75068308,130.63,130.59,4.78128308]
[1744688414440,0.05568031,130.62,130.6,0.05382813]
[1744688414743,7.6578,130.61,130.6,0.05382813]
[1744688415749,0.05568031,130.62,130.6,0.05382813]
[1744688416349,7.6577,130.61,130.6,0.05382813]
[1744688416849,7.71298031,130.62,130.6,0.05382813]
[1744688417145,0.05568031,130.62,130.6,0.05382813]
[1744688417346,0.05568031,130.62,130.6,29.61382813]
[1744688419347,0.05568031,130.62,130.6,37.27212813]
[1744688419546,0.05568031,130.62,130.6,29.61382813]
[1744688419744,0.05568031,130.62,130.6,37.08162387]
[1744688420053,2.1204,130.69,130.6,37.08162387]
[1744688420251,2.1204,130.69,130.62,15.12459574]
[1744688420452,7.46779574,130.73,130.64,7.46779574]
[1744688420651,7.46779574,130.73,130.64,9.51459574]
[1744688421054,0.04851746,130.7,130.67,0.04883552]
[1744688421351,7.654,130.68,130.67,0.04883552]
[1744688421853,0.04851746,130.7,130.67,0.04883552]
[1744688422449,7.6534,130.69,130.67,0.04883552]
[1744688423254,0.04851746,130.7,130.67,0.04883552]
[1744688423650,0.04851746,130.7,130.67,7.51663126]
[1744688423858,0.04851746,130.7,130.68,7.6532]
[1744688424156,0.04851746,130.7,130.69,29.56]
[1744688426252,7.70091746,130.7,130.69,29.56]
[1744688427258,7.6534,130.69,130.67,0.04883552]
[1744688427452,7.5163132,130.7,130.67,0.04883552]
[1744688427955,7.6536,130.68,130.67,0.04883552]
[1744688428255,7.46779574,130.68,130.58,7.46779574]
[1744688428451,7.46779574,130.65,130.59,29.54]
[1744688428954,7.6572,130.62,130.59,29.54]
[1744688429257,7.71023762,130.62,130.59,29.59232903]
[1744688429557,0.05303762,130.62,130.59,29.59232903]
[1744688430255,0.05303762,130.62,130.6,7.6579]
[1744688430551,0.05303762,130.62,130.59,29.59232903]
[1744688430756,0.05303762,130.62,130.59,37.25062903]
[1744688430951,0.05303762,130.62,130.59,29.59232903]
[1744688431657,0.05303762,130.62,130.6,7.46779574]
[1744688431857,29.54,130.68,130.61,7.6572]
[1744688432057,29.54,130.68,130.62,29.54]
[1744688432357,7.46779574,130.67,130.62,29.54]
[1744688432856,7.656,130.64,130.63,0.05419927]
[1744688441564,7.6579,130.61,130.59,29.54]
[1744688441958,7.46779574,130.64,130.59,29.54]
[1744688442160,7.46779574,130.62,130.55,29.54]
[1744688442380,7.46779574,130.6,130.51,29.54]
[1744688442563,7.46779574,130.56,130.51,29.54]
[1744688442863,7.46779574,130.56,130.44,551.1]
[1744688442864,7.6636,130.51,130.47,29.54]
[1744688443165,7.71836754,130.5,130.48,0.04925967]
[1744688444964,7.52146328,130.5,130.43,29.54]
[1744688445165,7.46779574,130.48,130.43,29.54]
[1744688445368,7.6681,130.44,130.4,33.5985]
[1744688445759,7.46779574,130.46,130.4,33.5985]
[1744688445957,7.72503012,130.44,130.42,0.05302175]
[1744688446163,0.05713012,130.44,130.42,0.05302175]
[1744688448167,0.05713012,130.44,130.42,7.72152175]
[1744688450168,0.05713012,130.44,130.42,0.05302175]
[1744688451165,7.72503012,130.44,130.42,0.05302175]
[1744688451365,0.05713012,130.44,130.42,0.05302175]
[1744688453370,7.72483012,130.44,130.42,0.05302175]
[1744688455171,0.05713012,130.44,130.42,0.05302175]
[1744688456070,0.05713012,130.44,130.43,29.58]
[1744688456576,0.05713012,130.44,130.42,0.05302175]
[1744688456767,7.6683,130.43,130.42,0.05302175]
[1744688456965,0.05713012,130.44,130.42,0.05302175]
[1744688457564,7.72523012,130.44,130.42,0.05302175]
[1744688458275,0.05713012,130.44,130.42,0.05302175]
[1744688460981,7.6683,130.43,130.42,0.05302175]
[1744688461880,0.05713012,130.44,130.42,0.05302175]
[1744688463484,0.05713012,130.44,130.42,7.72182175]
[1744688464184,0.05713012,130.44,130.42,0.05302175]
[1744688464687,0.05713012,130.44,130.42,7.72152175]
[1744688464884,0.05713012,130.44,130.43,29.58]
[1744688465890,0.05713012,130.44,130.43,37.2483]
[1744688466282,0.05713012,130.44,130.43,29.58]
[1744688466788,0.05713012,130.44,130.42,0.05302175]
[1744688468088,7.72483012,130.44,130.42,0.05302175]
[1744688469995,0.05713012,130.44,130.42,0.05302175]
[1744688471094,7.72483012,130.44,130.42,0.05302175]
[1744688471295,0.05713012,130.44,130.42,0.05302175]
[1744688471695,0.05713012,130.44,130.37,29.58]
[1744688471895,2.01983012,130.44,130.37,29.58]
[1744688472493,7.46779574,130.43,130.37,29.58]
[1744688472690,7.6704,130.4,130.37,29.58]
[1744688472895,0.05358771,130.41,130.39,0.05528786]
[1744688474191,7.67,130.4,130.39,0.05528786]
[1744688474600,0.05358771,130.41,130.39,0.05528786]
[1744688475602,7.72358771,130.41,130.39,0.05528786]
[1744688476801,7.67,130.4,130.39,0.05528786]
[1744688481908,7.72328771,130.41,130.39,0.05528786]
[1744688482310,0.05358771,130.41,130.39,0.05528786]
[1744688483007,7.67,130.4,130.39,0.05528786]
[1744688486608,7.6728,130.36,130.33,29.58]
[1744688486811,7.46779574,130.37,130.32,551.92]
[1744688487002,7.46779574,130.37,130.33,3.12325672]
[1744688487202,7.46779574,130.37,130.32,29.58]
[1744688487402,7.46779574,130.37,130.33,3.12955122]
[1744688487606,7.46779574,130.37,130.32,29.58]
[1744688487813,0.05773019,130.36,130.34,0.04987877]
[1744688489311,7.673,130.35,130.34,0.04987877]
[1744688490406,15.14079574,130.35,130.34,7.877e-05]
[1744688490611,44.74079574,130.35,130.34,7.877e-05]
[1744688493716,7.6756,130.31,130.27,9.8061]
[1744688493906,7.6756,130.31,130.28,3.12451972]
[1744688494112,7.675,130.32,130.28,7.6769]
[1744688494312,37.06779574,130.35,130.27,2.1287]
[1744688494512,37.06779574,130.35,130.28,3.12334268]
[1744688494717,0.05222489,130.32,130.3,0.05573087]
[1744688496321,7.72702489,130.32,130.3,0.05573087]
[1744688498121,7.6753,130.31,130.3,0.05573087]
[1744688500517,7.6777,130.27,130.23,29.6]
[1744688500720,7.46779574,130.31,130.24,3.12106169]
[1744688500916,29.6,130.32,130.23,29.6]
[1744688500917,7.46779574,130.29,130.23,29.6]
[1744688501522,7.6786,130.26,130.25,0.05175848]
[1744688501924,0.05101442,130.27,130.25,0.05175848]
[1744688503922,7.6783,130.26,130.25,0.05175848]
[1744688506527,7.68,130.24,130.21,29.6]
[1744688507226,7.46779574,130.27,130.21,29.6]
[1744688507526,7.46779574,130.25,130.21,29.6]
[1744688507727,7.6795,130.24,130.23,0.04861394]
[1744688508223,7.683,130.18,130.13,552.52]
[1744688508424,7.46779574,130.21,130.13,589.60779574]
[1744688508624,37.08779574,130.23,130.13,589.60779574]
[1744688509025,7.6818,130.2,130.15,7.6847]
[1744688509328,0.05304687,130.19,130.16,0.05630337]
[1744688509630,7.73544687,130.19,130.16,0.05630337]
[1744688510029,7.73544687,130.19,130.16,29.67630337]
[1744688513127,7.6831,130.18,130.16,29.67630337]
[1744688513329,0.05304687,130.19,130.16,29.67630337]
[1744688514032,7.73584687,130.19,130.16,29.67630337]
[1744688514628,0.05304687,130.19,130.16,29.67630337]
[1744688515030,0.05304687,130.19,130.16,37.36050337]
[1744688515829,7.73604687,130.19,130.16,29.67630337]
[1744688516331,0.05304687,130.19,130.16,29.67630337]
[1744688516533,7.6831,130.18,130.16,29.67630337]
[1744688516733,0.05304687,130.19,130.16,29.67630337]
[1744688517131,7.73584687,130.19,130.16,29.67630337]
[1744688517936,7.683,130.18,130.16,29.67630337]
[1744688519534,0.05304687,130.19,130.16,29.67630337]
[1744688519835,7.46779574,130.17,130.09,29.64]
[1744688520036,7.6858,130.14,130.1,29.64]
[1744688520333,7.46779574,130.17,130.1,37.3274]
[1744688520533,7.6852,130.15,130.1,29.64]
[1744688520835,7.6852,130.15,130.11,7.687]
[1744688521035,0.05106487,130.14,130.11,7.73857331]
[1744688521237,0.05106487,130.14,130.11,0.05157331]
[1744688521637,7.6865,130.13,130.11,0.05157331]
[1744688521835,0.05106487,130.14,130.11,0.05157331]
[1744688522137,7.6865,130.13,130.11,0.05157331]
[1744688522736,7.6865,130.12,130.11,0.05157331]
[1744688522929,0.05106487,130.14,130.11,0.05157331]
[1744688523133,0.05106487,130.14,130.11,29.69157331]
[1744688523329,7.6838,130.17,130.11,37.15936905]
[1744688523533,7.6838,130.17,130.13,7.6856]
[1744688523734,33.7786,130.2,130.13,7.6856]
[1744688524239,7.46779574,130.19,130.12,7.6863]
[1744688524437,7.6841,130.17,130.15,0.0527785]
[1744688524732,0.05685176,130.18,130.15,0.0527785]
[1744688524940,7.6836,130.17,130.15,0.0527785]
[1744688525234,0.05685176,130.18,130.15,0.0527785]
[1744688525939,7.6842,130.16,130.15,0.0527785]
[1744688527130,0.05685176,130.18,130.15,0.0527785]
[1744688527337,0.05685176,130.18,130.16,29.64]
[1744688527533,7.46779574,130.25,130.17,7.46779574]
[1744688527836,7.46779574,130.24,130.16,29.64]
[1744688528533,7.46779574,130.22,130.16,29.64]
[1744688528736,0.04957816,130.21,130.19,0.05881512]
[1744688528934,7.6822,130.2,130.19,0.05881512]
[1744688536836,0.04957816,130.21,130.19,29.69881512]
[1744688537237,7.6818,130.2,130.19,0.05881512]
[1744688541150,0.04957816,130.21,130.19,34.50883484]
[1744688541445,0.04957816,130.21,130.2,4.81001972]
[1744688541639,7.6797,130.24,130.2,4.81001972]
[1744688541844,7.6797,130.24,130.2,10.93651972]
[1744688542042,7.6797,130.24,130.21,4.81001972]
[1744688542843,7.72990603,130.24,130.21,4.85981296]
[1744688543049,7.72990603,130.24,130.21,12.54071296]
[1744688543237,0.05020603,130.24,130.21,7.73069324]
[1744688543845,0.05020603,130.24,130.22,29.64]
[1744688545150,29.64,130.33,130.25,7.6785]
[1744688545354,37.14997221,130.33,130.25,37.3185]
[1744688545545,37.14997221,130.33,130.27,7.6777]
[1744688546244,37.14997221,130.33,130.29,0.05910335]
[1744688546245,7.676,130.3,130.29,0.05910335]
[1744688546446,0.05522165,130.31,130.29,0.05910335]
[1744688547458,7.73082165,130.31,130.29,0.05910335]
[1744688547952,0.05522165,130.31,130.29,0.05910335]
[1744688548548,0.05522165,130.31,130.29,7.73520335]
[1744688549556,29.62,130.36,130.31,7.6753]
[1744688549755,29.62,130.36,130.3,7.50997221]
[1744688549955,2.1308,130.37,130.31,29.62]
[1744688550155,2.1308,130.37,130.31,37.295]
[1744688550355,2.1308,130.37,130.31,29.62]
[1744688550557,7.6739,130.34,130.31,29.62]
[1744688550759,7.6739,130.34,130.33,0.05290694]
[1744688565175,12.47416546,130.34,130.33,0.05290694]
[1744688565875,7.6739,130.34,130.33,0.05290694]
[1744688567577,7.72547287,130.35,130.33,0.05290694]
[1744688568073,0.05237287,130.35,130.33,12.5272724]
[1744688568271,0.05237287,130.35,130.34,34.40026546]
[1744688568675,0.05237287,130.35,130.34,42.07386546]
[1744688569279,0.05237287,130.35,130.34,34.40026546]
[1744688570983,0.05237287,130.35,130.34,29.6]
[1744688571780,0.05237287,130.35,130.34,42.07386546]
[1744688571981,4.80026546,130.39,130.34,34.40026546]
[1744688572181,2.0482,130.42,130.34,34.40026546]
[1744688572376,4.80026546,130.39,130.35,4.80026546]
[1744688572571,4.80026546,130.4,130.35,4.80026546]
[1744688572771,7.6717,130.38,130.35,4.80026546]
[1744688572972,7.72857446,130.38,130.35,4.85377408]
[1744688574581,7.6719,130.37,130.35,4.85377408]
[1744688574978,0.05687446,130.38,130.35,0.05350862]
[1744688575284,7.6718,130.37,130.35,0.05350862]
[1744688575480,0.05687446,130.38,130.35,4.85377408]
[1744688575776,7.72837446,130.38,130.35,0.05350862]
[1744688576084,4.80026546,130.36,130.35,0.05350862]
[1744688576382,12.47266546,130.36,130.35,0.05350862]
[1744688576583,4.80026546,130.36,130.3,42.07616546]
[1744688576783,4.80026546,130.34,130.3,34.40026546]
[1744688576984,4.80026546,130.35,130.3,34.40026546]
[1744688577285,7.6738,130.34,130.31,7.675]
[1744688577578,4.80026546,130.36,130.3,34.40026546]
[1744688577883,0.05625933,130.34,130.31,0.053885]
[1744688578082,0.05625933,130.34,130.31,4.85415046]
[1744688578884,0.05625933,130.34,130.33,4.80026546]
[1744688579287,0.05625933,130.34,130.32,12.47456546]
[1744688579476,0.05625933,130.34,130.32,4.80026546]
[1744688580081,7.72985933,130.34,130.31,12.52905046]
[1744688580379,0.05625933,130.34,130.31,4.85415046]
[1744688580584,0.05625933,130.34,130.31,0.053885]
[1744688581285,7.6747,130.33,130.31,0.053885]
[1744688581485,0.05625933,130.34,130.31,4.85415046]
[1744688581887,0.05625933,130.34,130.31,12.52915046]
[1744688582078,0.05625933,130.34,130.33,4.80026546]
[1744688582284,34.40026546,130.39,130.33,34.40026546]
[1744688582484,33.6189,130.42,130.35,12.47296546]
[1744688582686,4.80026546,130.39,130.35,4.80026546]
[1744688583086,7.6713,130.38,130.35,4.80026546]
[1744688583286,7.6713,130.38,130.34,7.6735]
[1744688583491,7.72191258,130.38,130.35,0.04945257]
[1744688583788,7.72191258,130.38,130.35,7.72225257]
[1744688584288,0.05061258,130.38,130.36,7.6722]
[1744688586491,0.05061258,130.38,130.37,7.6718]
[1744688588085,37.09479877,130.45,130.4,7.6695]
[1744688588290,29.6,130.45,130.4,7.6695]
[1744688588587,11.53579877,130.47,130.39,29.6]
[1744688588789,7.6673,130.45,130.41,7.6693]
[1744688589190,11.53579877,130.47,130.42,0.0514151]
[1744688589390,0.05385286,130.44,130.42,0.0514151]
[1744688589590,7.72185286,130.44,130.42,0.0514151]
[1744688590394,7.6683,130.43,130.42,0.0514151]
[1744688591490,15.16309877,130.43,130.42,0.0514151]
[1744688594193,7.6683,130.43,130.42,0.0514151]
[1744688594992,0.05385286,130.44,130.42,0.0514151]
[1744688595690,7.6683,130.43,130.42,0.0514151]
[1744688602499,15.16309877,130.43,130.42,0.0514151]
[1744688605103,7.6683,130.43,130.42,0.0514151]
[1744688605403,12.46248579,130.43,130.42,0.0514151]
[1744688608498,7.6683,130.43,130.42,0.0514151]
[1744688608805,0.05385286,130.44,130.42,0.0514151]
[1744688609001,0.05385286,130.44,130.42,4.84560089]
[1744688610506,29.58,130.48,130.43,12.46248579]
[1744688610507,34.37418579,130.48,130.43,12.46248579]
[1744688610711,29.58,130.48,130.44,4.79418579]
[1744688611509,7.6664,130.47,130.44,12.46158579]
[1744688611708,7.71673483,130.47,130.45,0.05018487]
[1744688612411,0.05033483,130.47,130.45,7.71728487]
[1744688613011,0.05033483,130.47,130.45,0.05018487]
[1744688613510,0.05033483,130.47,130.45,4.84437066]
[1744688613709,0.05033483,130.47,130.45,12.51117066]
[1744688614811,7.71643483,130.47,130.45,0.05018487]
[1744688617417,7.6665,130.46,130.45,0.05018487]
[1744688619423,7.71653483,130.47,130.45,0.05018487]
[1744688622624,7.6665,130.46,130.45,0.05018487]
[1744688622825,12.46068579,130.46,130.45,0.05018487]
[1744688624526,7.6683,130.43,130.42,29.58]
[1744688624727,4.79418579,130.43,130.38,34.35418579]
[1744688625628,4.79418579,130.43,130.39,0.05215159]
[1744688625827,0.05909981,130.42,130.39,0.05215159]
[1744688627126,7.6698,130.41,130.39,4.84633738]
[1744688627327,0.05909981,130.42,130.39,4.84633738]
[1744688627731,0.05909981,130.42,130.41,4.79418579]
[1744688628521,0.05909981,130.42,130.4,4.79418579]
[1744688628722,0.05909981,130.42,130.39,0.05215159]
[1744688629532,0.05909981,130.42,130.39,4.84633738]
[1744688629734,0.05909981,130.42,130.4,4.79418579]
[1744688630328,0.05909981,130.42,130.41,4.79418579]
[1744688630833,0.05909981,130.42,130.39,4.84633738]
[1744688632133,7.72829981,130.42,130.39,4.84633738]
[1744688632634,7.72829981,130.42,130.39,12.51663738]
[1744688633236,0.05909981,130.42,130.39,12.51663738]
[1744688635840,7.72809981,130.42,130.39,12.51663738]
[1744688638635,0.05909981,130.42,130.41,7.6695]
[1744688638840,0.05909981,130.42,130.41,15.60810999]
[1744688639237,7.6667,130.46,130.42,7.6685]
[1744688639438,4.79418579,130.46,130.38,29.56]
[1744688639637,4.79418579,130.44,130.39,3.14645179]
[1744688639942,4.79418579,130.45,130.39,4.79418579]
[1744688640143,4.79418579,130.45,130.41,4.79418579]
[1744688640342,0.04962077,130.43,130.41,12.51666382]
[1744688640637,0.05312102,130.43,130.41,12.51666382]
[1744688640842,0.05312102,130.43,130.41,0.05317803]
[1744688641440,7.6689,130.42,130.41,0.05317803]
[1744688642641,12.46308579,130.42,130.41,0.05317803]
[1744688643543,7.6689,130.42,130.41,0.05317803]
[1744688647351,0.05312102,130.43,130.41,0.05317803]
[1744688647551,0.05312102,130.43,130.41,34.40736382]
[1744688648156,29.56,130.49,130.42,3.15070941]
[1744688648351,29.56,130.49,130.44,4.79418579]
[1744688648855,7.6664,130.47,130.44,4.79418579]
[1744688649156,7.70022189,130.47,130.44,0.05867125]
[1744688652958,7.6666,130.46,130.44,0.05867125]
[1744688654261,7.70002189,130.47,130.44,0.05867125]
[1744688654764,0.03382189,130.47,130.44,12.52015704]
[1744688655360,0.03382189,130.47,130.44,4.85285704]
[1744688655962,7.6666,130.46,130.44,0.05867125]
[1744688656160,4.79418579,130.45,130.44,0.05867125]
[1744688656565,12.46128579,130.45,130.44,0.05867125]
[1744688656766,4.79418579,130.45,130.39,4.79418579]
[1744688656962,4.79418579,130.44,130.4,3.15886902]
[1744688657261,7.6687,130.43,130.39,12.46448579]
[1744688657457,7.6687,130.43,130.4,3.15906551]
[1744688657657,7.6687,130.43,130.39,12.46448579]
[1744688657863,7.72194603,130.43,130.4,10.88310392]
[1744688658063,7.72194603,130.43,130.4,7.72417174]
[1744688659768,7.72194603,130.43,130.41,3.15928761]
[1744688660070,7.72194603,130.43,130.41,12.46358579]
[1744688660071,0.05324603,130.43,130.41,12.46358579]
[1744688660366,0.05324603,130.43,130.41,42.00358579]
[1744688660566,0.05324603,130.43,130.41,37.2094]
[1744688666271,0.05324603,130.43,130.42,3.16849845]
[1744688671077,4.84743182,130.43,130.4,0.05427174]
[1744688671575,7.6689,130.42,130.4,0.05427174]
[1744688672373,12.51593182,130.43,130.4,0.05427174]
[1744688672573,12.51593182,130.43,130.41,3.1639022]
[1744688672774,4.84743182,130.43,130.4,0.05427174]
[1744688674178,7.6695,130.41,130.4,0.05427174]
[1744688675079,12.46368579,130.41,130.4,0.05427174]
[1744688675378,7.6712,130.38,130.34,31.6528]
[1744688675577,4.79418579,130.39,130.35,3.16380877]
[1744688675770,4.79418579,130.39,130.34,36.44698579]
[1744688675771,4.79418579,130.39,130.36,3.16380877]
[1744688675972,7.6716,130.38,130.35,7.6725]
[1744688676173,7.6716,130.38,130.34,36.44698579]
[1744688676474,7.72551406,130.38,130.35,3.22306045]
[1744688676676,7.72551406,130.38,130.35,0.05903862]
[1744688677678,7.72551406,130.38,130.35,7.73183862]
[1744688680479,7.72551406,130.38,130.35,0.05903862]
[1744688687984,7.72551406,130.38,130.35,7.73153862]
[1744688687985,0.05391406,130.38,130.35,7.73153862]
[1744688690085,7.72521406,130.38,130.35,7.73153862]
[1744688692987,7.6721,130.37,130.35,0.05903862]
[1744688698989,0.05391406,130.38,130.35,0.05903862]
[1744688699193,4.84809985,130.38,130.35,0.05903862]
[1744688699691,7.6721,130.37,130.35,0.05903862]
[1744688700489,7.6724,130.36,130.35,0.05903862]
[1744688700890,7.6722,130.37,130.35,0.05903862]
[1744688703393,0.05391406,130.38,130.36,4.79418579]
[1744688704597,0.05391406,130.38,130.36,12.46658579]
[1744688712302,0.05391406,130.38,130.37,3.15966805]
[1744688715301,7.72511406,130.38,130.37,3.15966805]
[1744688715503,4.84809985,130.38,130.35,0.05903862]
[1744688715703,4.79418579,130.37,130.35,0.05903862]
[1744688716506,12.51979985,130.38,130.35,0.05903862]
[1744688716706,12.51979985,130.38,130.36,3.16692855]
[1744688717006,12.51979985,130.38,130.35,0.05903862]
[1744688717206,0.05391406,130.38,130.37,7.6718]
[1744688717502,0.05391406,130.38,130.37,15.63243902]
[1744688724509,0.05391406,130.38,130.37,10.83825323]
[1744688724715,0.05391406,130.38,130.37,15.63243902]
[1744688727523,0.05391406,130.38,130.37,10.83825323]
[1744688729927,0.05391406,130.38,130.37,3.16645323]
[1744688730227,0.05391406,130.38,130.37,3.16568076]
[1744688730727,4.84809985,130.38,130.35,37.27163862]
[1744688731024,4.84809985,130.38,130.36,3.16581799]
[1744688731325,4.84809985,130.38,130.35,37.27163862]
[1744688731526,4.84809985,130.38,130.36,3.16597433]
[1744688731726,4.84809985,130.38,130.35,37.27163862]
[1744688732027,4.84809985,130.38,130.36,3.16599137]
[1744688732222,4.84809985,130.38,130.35,29.59903862]
[1744688732426,4.84809985,130.38,130.36,3.16612063]
[1744688732629,4.84809985,130.38,130.35,29.59903862]
[1744688732927,7.6718,130.37,130.36,3.16626143]
[1744688733728,7.6718,130.37,130.35,0.05903862]
[1744688734331,12.51959985,130.38,130.35,0.05903862]
[1744688735231,12.51959985,130.38,130.36,3.16659237]
[1744688735428,12.51959985,130.38,130.35,0.05903862]
[1744688735731,0.05391406,130.38,130.36,3.1668447]
[1744688735931,0.05391406,130.38,130.35,4.85322441]
[1744688736230,0.05391406,130.38,130.36,3.16673245]
[1744688736426,0.05391406,130.38,130.35,4.85322441]